{"text_format":"3","workbook":"xlsx","n_sheets":2,"sheets":["Agenda dos Empregados","Configuração"],"not_rendered":{"defined_names":21},"read":"whole","date_system":"1900"}

{"sheet":"Agenda dos Empregados","index":0,"n_rows":296,"n_cols":21,"rows_kept":296,"merged":[[6,1,6,9],[66,1,66,9],[126,1,126,9],[186,1,186,9],[246,1,246,9]]}
["Agenda de Turnos dos Empregados"]
[]
[null,"TOTAL:",null,{"$f":"SUM(4:4)","v":{"v":56,"d":"56.00"}}]
[null,"HORAS:",null,{"$f":"EmpregadosDiasHorasTotal","v":{"v":8,"d":"8.00"}},{"v":8,"d":"8.00"},{"v":8,"d":"8.00"},{"v":8,"d":"8.00"},{"v":8,"d":"8.00"},{"v":8,"d":"8.00"},{"v":8,"d":"8.00"},{"v":0,"d":"0.00"},{"v":0,"d":"0.00"},{"v":0,"d":"0.00"},{"v":0,"d":"0.00"},{"v":0,"d":"0.00"},{"v":0,"d":"0.00"},{"v":0,"d":"0.00"},{"v":0,"d":"0.00"},{"v":0,"d":"0.00"},{"v":0,"d":"0.00"},{"v":0,"d":"0.00"}]
[null,"EMPREGADO:",null,"Bento, N","Neves, P","Silva, E","Neves, P","Farinha, N","Grilo, C","Ramos, L"]
[]
[null,"2012-07-16T09:00:00"]
[null,{"$f":"B7","v":41106.375},{"$nulls":5},"Férias"]
[null,{"$f":"ApresentaçãoPeríodos","v":":15"},null,"Receção",{"$nulls":3},"Férias"]
[null,":30",null,"Receção",{"$nulls":3},"Férias"]
[null,":45",null,"Receção","Supervisor",null,"Serv. Apoio a Clientes","Férias"]
[null,"10:00 AM",null,"Receção","Supervisor",null,"Serv. Apoio a Clientes","Férias"]
[null,":15",null,"Receção","Supervisor",null,"Serv. Apoio a Clientes","Férias"]
[null,":30",null,"Receção","Supervisor",null,"Serv. Apoio a Clientes","Férias","Contabilidade"]
[null,":45",null,"Receção","Supervisor",null,"Serv. Apoio a Clientes","Férias","Contabilidade","Porteiro"]
[null,"11:00 AM",null,"Receção","Supervisor",null,"Serv. Apoio a Clientes","Férias","Contabilidade","Porteiro"]
[null,":15",null,"Receção","Supervisor","Guia","Serv. Apoio a Clientes","Férias","Contabilidade","Porteiro"]
[null,":30",null,"Receção","Pausa","Guia","Serv. Apoio a Clientes","Férias","Contabilidade","Porteiro"]
[null,":45",null,"Almoço","Supervisor","Guia","Serv. Apoio a Clientes","Férias","Contabilidade","Porteiro"]
[null,"12:00 PM",null,"Almoço","Supervisor","Guia","Serv. Apoio a Clientes","Férias","Contabilidade","Porteiro"]
[null,":15",null,"Receção","Supervisor","Guia","Serv. Apoio a Clientes","Férias","Pausa","Porteiro"]
[null,":30",null,"Receção","Supervisor","Pausa","Serv. Apoio a Clientes","Férias","Telefones","Pausa"]
[null,":45",null,"Receção","Supervisor","Guia","Serv. Apoio a Clientes","Férias","Telefones","Porteiro"]
[null,"1:00 PM",null,"Receção","Supervisor","Guia","Serv. Apoio a Clientes","Férias","Telefones","Porteiro"]
[null,":15",null,"Receção","Supervisor","Guia","Almoço","Férias","Telefones","Porteiro"]
[null,":30",null,null,"Supervisor","Guia","Almoço","Férias","Telefones","Porteiro"]
[null,":45",null,null,"Supervisor","Guia","Almoço","Férias","Almoço","Porteiro"]
[null,"2:00 PM",null,"Caixa","Almoço","Guia","Almoço","Férias","Almoço","Porteiro"]
[null,":15",null,"Caixa","Almoço","Guia","Serv. Apoio a Clientes","Férias","Telefones","Porteiro"]
[null,":30",null,"Caixa","Almoço","Almoço","Serv. Apoio a Clientes","Férias","Telefones","Almoço"]
[null,":45",null,"Caixa","Almoço","Almoço","Serv. Apoio a Clientes","Férias","Telefones","Almoço"]
[null,"3:00 PM",null,"Caixa","Segurança","Almoço","Serv. Apoio a Clientes","Férias","Telefones","Almoço"]
[null,":15",null,"Caixa","Segurança","Almoço","Serv. Apoio a Clientes","Férias","Telefones","Almoço"]
[null,":30",null,"Caixa","Segurança","Guia","Serv. Apoio a Clientes","Férias","Telefones","Fechar"]
[null,":45",null,"Caixa","Segurança","Guia","Serv. Apoio a Clientes","Férias","Telefones","Fechar"]
[null,"4:00 PM",null,"Caixa","Segurança","Guia","Serv. Apoio a Clientes","Férias","Pausa","Fechar"]
[null,":15",null,"Pausa","Segurança","Guia","Pausa","Férias","Telefones","Fechar"]
[null,":30",null,"Caixa","Segurança","Guia","Serv. Apoio a Clientes","Férias","Telefones","Fechar"]
[null,":45",null,"Caixa","Segurança","Guia","Serv. Apoio a Clientes","Férias","Telefones","Fechar"]
[null,"5:00 PM",null,"Caixa","Segurança","Guia","Serv. Apoio a Clientes",null,"Telefones","Fechar"]
[null,":15",null,"Caixa","Segurança","Guia","Serv. Apoio a Clientes",null,"Telefones","Fechar"]
[null,":30",null,"Caixa","Segurança","Guia","Serv. Apoio a Clientes",null,"Telefones","Fechar"]
[null,":45",null,"Caixa","Segurança","Guia","Serv. Apoio a Clientes",null,"Telefones","Fechar"]
[null,"6:00 PM",null,"Caixa","Segurança","Guia","Serv. Apoio a Clientes",null,"Telefones","Fechar"]
[null,":15",null,"Caixa","Segurança","Guia","Serv. Apoio a Clientes",null,"Telefones","Fechar"]
[null,":30",null,null,"Segurança","Guia","Serv. Apoio a Clientes",null,"Telefones","Fechar"]
[null,":45",null,null,"Segurança","Pausa","Serv. Apoio a Clientes",null,"Telefones","Pausa"]
[null,"7:00 PM",{"$nulls":3},"Guia",null,null,"Telefones","Fechar"]
[null,":15",{"$nulls":3},"Guia",null,null,"Telefones","Fechar"]
[null,":30",{"$nulls":3},"Guia",{"$nulls":3},"Fechar"]
[null,":45",{"$nulls":3},"Guia",{"$nulls":3},"Fechar"]
[null,"8:00 PM",{"$nulls":3},"Guia",{"$nulls":3},"Fechar"]
[null,":15",{"$nulls":3},"Guia"]
[null,":30",{"$nulls":3},"Guia"]
[null,":45"]
[null,"9:00 PM"]
[]
[]
[]
[]
["Agenda dos Empregados"]
[]
[null,"TOTAL:",null,{"$f":"SUM(64:64)","v":{"v":56,"d":"56.00"}}]
[null,"HORAS:",null,{"$f":"EmpregadosDiasHorasTotal","v":{"v":8,"d":"8.00"}},{"v":8,"d":"8.00"},{"v":8,"d":"8.00"},{"v":8,"d":"8.00"},{"v":8,"d":"8.00"},{"v":8,"d":"8.00"},{"v":8,"d":"8.00"},{"v":0,"d":"0.00"},{"v":0,"d":"0.00"},{"v":0,"d":"0.00"},{"v":0,"d":"0.00"},{"v":0,"d":"0.00"},{"v":0,"d":"0.00"},{"v":0,"d":"0.00"},{"v":0,"d":"0.00"},{"v":0,"d":"0.00"},{"v":0,"d":"0.00"},{"v":0,"d":"0.00"}]
[null,"EMPREGADO:",null,"Bento, N","Neves, P","Silva, E","Oliveira, S","Farinha, N","Grilo, C","Ramos, L"]
[]
[null,{"$f":"B7+1","v":"2012-07-17T09:00:00"}]
[null,{"$f":"B67","v":41107.375},{"$nulls":5},"Férias"]
[null,{"$f":"ApresentaçãoPeríodos","v":":15"},null,"Receção",{"$nulls":3},"Férias"]
[null,":30",null,"Receção",{"$nulls":3},"Férias"]
[null,":45",null,"Receção","Supervisor",null,"Serv. Apoio a Clientes","Férias"]
[null,"1:00 AM",null,"Receção","Supervisor",null,"Serv. Apoio a Clientes","Férias"]
[null,":15",null,"Receção","Supervisor",null,"Serv. Apoio a Clientes","Férias"]
[null,":30",null,"Receção","Supervisor",null,"Serv. Apoio a Clientes","Férias","Contabilidade"]
[null,":45",null,"Receção","Supervisor",null,"Serv. Apoio a Clientes","Férias","Contabilidade","Porteiro"]
[null,"2:00 AM",null,"Receção","Supervisor",null,"Serv. Apoio a Clientes","Férias","Contabilidade","Porteiro"]
[null,":15",null,"Receção","Supervisor","Guia","Serv. Apoio a Clientes","Férias","Contabilidade","Porteiro"]
[null,":30",null,"Receção","Pausa","Guia","Serv. Apoio a Clientes","Férias","Contabilidade","Porteiro"]
[null,":45",null,"Almoço","Supervisor","Guia","Serv. Apoio a Clientes","Férias","Contabilidade","Porteiro"]
[null,"3:00 AM",null,"Almoço","Supervisor","Guia","Serv. Apoio a Clientes","Férias","Contabilidade","Porteiro"]
[null,":15",null,"Receção","Supervisor","Guia","Serv. Apoio a Clientes","Férias","Pausa","Porteiro"]
[null,":30",null,"Receção","Supervisor","Pausa","Serv. Apoio a Clientes","Férias","Telefones","Pausa"]
[null,":45",null,"Receção","Supervisor","Guia","Serv. Apoio a Clientes","Férias","Telefones","Porteiro"]
[null,"4:00 AM",null,"Receção","Supervisor","Guia","Serv. Apoio a Clientes","Férias","Telefones","Porteiro"]
[null,":15",null,"Receção","Supervisor","Guia","Almoço","Férias","Telefones","Porteiro"]
[null,":30",null,null,"Supervisor","Guia","Almoço","Férias","Telefones","Porteiro"]
[null,":45",null,null,"Supervisor","Guia","Almoço","Férias","Almoço","Porteiro"]
[null,"5:00 AM",null,"Caixa","Almoço","Guia","Almoço","Férias","Almoço","Porteiro"]
[null,":15",null,"Caixa","Almoço","Guia","Serv. Apoio a Clientes","Férias","Telefones","Porteiro"]
[null,":30",null,"Caixa","Almoço","Almoço","Serv. Apoio a Clientes","Férias","Telefones","Almoço"]
[null,":45",null,"Caixa","Almoço","Almoço","Serv. Apoio a Clientes","Férias","Telefones","Almoço"]
[null,"6:00 AM",null,"Caixa","Segurança","Almoço","Serv. Apoio a Clientes","Férias","Telefones","Almoço"]
[null,":15",null,"Caixa","Segurança","Almoço","Serv. Apoio a Clientes","Férias","Telefones","Almoço"]
[null,":30",null,"Caixa","Segurança","Guia","Serv. Apoio a Clientes","Férias","Telefones","Fechar"]
[null,":45",null,"Caixa","Segurança","Guia","Serv. Apoio a Clientes","Férias","Telefones","Fechar"]
[null,"7:00 AM",null,"Caixa","Segurança","Guia","Serv. Apoio a Clientes","Férias","Pausa","Fechar"]
[null,":15",null,"Pausa","Segurança","Guia","Pausa","Férias","Telefones","Fechar"]
[null,":30",null,"Caixa","Segurança","Guia","Serv. Apoio a Clientes","Férias","Telefones","Fechar"]
[null,":45",null,"Caixa","Segurança","Guia","Serv. Apoio a Clientes","Férias","Telefones","Fechar"]
[null,"8:00 AM",null,"Caixa","Segurança","Guia","Serv. Apoio a Clientes",null,"Telefones","Fechar"]
[null,":15",null,"Caixa","Segurança","Guia","Serv. Apoio a Clientes",null,"Telefones","Fechar"]
[null,":30",null,"Caixa","Segurança","Guia","Serv. Apoio a Clientes",null,"Telefones","Fechar"]
[null,":45",null,"Caixa","Segurança","Guia","Serv. Apoio a Clientes",null,"Telefones","Fechar"]
[null,"9:00 AM",null,"Caixa","Segurança","Guia","Serv. Apoio a Clientes",null,"Telefones","Fechar"]
[null,":15",null,"Caixa","Segurança","Guia","Serv. Apoio a Clientes",null,"Telefones","Fechar"]
[null,":30",null,null,"Segurança","Guia","Serv. Apoio a Clientes",null,"Telefones","Fechar"]
[null,":45",null,null,"Segurança","Pausa","Serv. Apoio a Clientes",null,"Telefones","Pausa"]
[null,"10:00 AM",{"$nulls":3},"Guia",null,null,"Telefones","Fechar"]
[null,":15",{"$nulls":3},"Guia",null,null,"Telefones","Fechar"]
[null,":30",{"$nulls":3},"Guia",{"$nulls":3},"Fechar"]
[null,":45",{"$nulls":3},"Guia",{"$nulls":3},"Fechar"]
[null,"11:00 AM",{"$nulls":3},"Guia",{"$nulls":3},"Fechar"]
[null,":15",{"$nulls":3},"Guia"]
[null,":30",{"$nulls":3},"Guia"]
[null,":45"]
[null,"12:00 PM"]
[]
[]
[]
[]
["Agenda dos Empregados"]
[]
[null,"TOTAL:",null,{"$f":"SUM(124:124)","v":{"v":56,"d":"56.00"}}]
[null,"HORAS:",null,{"$f":"EmpregadosDiasHorasTotal","v":{"v":8,"d":"8.00"}},{"v":8,"d":"8.00"},{"v":8,"d":"8.00"},{"v":8,"d":"8.00"},{"v":8,"d":"8.00"},{"v":8,"d":"8.00"},{"v":8,"d":"8.00"},{"v":0,"d":"0.00"},{"v":0,"d":"0.00"},{"v":0,"d":"0.00"},{"v":0,"d":"0.00"},{"v":0,"d":"0.00"},{"v":0,"d":"0.00"},{"v":0,"d":"0.00"},{"v":0,"d":"0.00"},{"v":0,"d":"0.00"},{"v":0,"d":"0.00"},{"v":0,"d":"0.00"}]
[null,"EMPREGADO:",null,"Bento, N","Neves, P","Silva, E","Oliveira, S","Farinha, N","Grilo, C","Ramos, L"]
[]
[null,{"$f":"B67+1","v":"2012-07-18T09:00:00"}]
[null,{"$f":"B127","v":41108.375},{"$nulls":5},"Férias"]
[null,{"$f":"ApresentaçãoPeríodos","v":":15"},null,"Receção",{"$nulls":3},"Férias"]
[null,":30",null,"Receção",{"$nulls":3},"Férias"]
[null,":45",null,"Receção","Supervisor",null,"Serv. Apoio a Clientes","Férias"]
[null,"4:00 PM",null,"Receção","Supervisor",null,"Serv. Apoio a Clientes","Férias"]
[null,":15",null,"Receção","Supervisor",null,"Serv. Apoio a Clientes","Férias"]
[null,":30",null,"Receção","Supervisor",null,"Serv. Apoio a Clientes","Férias","Contabilidade"]
[null,":45",null,"Receção","Supervisor",null,"Serv. Apoio a Clientes","Férias","Contabilidade","Porteiro"]
[null,"5:00 PM",null,"Receção","Supervisor",null,"Serv. Apoio a Clientes","Férias","Contabilidade","Porteiro"]
[null,":15",null,"Receção","Supervisor","Guia","Serv. Apoio a Clientes","Férias","Contabilidade","Porteiro"]
[null,":30",null,"Receção","Pausa","Guia","Serv. Apoio a Clientes","Férias","Contabilidade","Porteiro"]
[null,":45",null,"Almoço","Supervisor","Guia","Serv. Apoio a Clientes","Férias","Contabilidade","Porteiro"]
[null,"6:00 PM",null,"Almoço","Supervisor","Guia","Serv. Apoio a Clientes","Férias","Contabilidade","Porteiro"]
[null,":15",null,"Receção","Supervisor","Guia","Serv. Apoio a Clientes","Férias","Pausa","Porteiro"]
[null,":30",null,"Receção","Supervisor","Pausa","Serv. Apoio a Clientes","Férias","Telefones","Pausa"]
[null,":45",null,"Receção","Supervisor","Guia","Serv. Apoio a Clientes","Férias","Telefones","Porteiro"]
[null,"7:00 PM",null,"Receção","Supervisor","Guia","Serv. Apoio a Clientes","Férias","Telefones","Porteiro"]
[null,":15",null,"Receção","Supervisor","Guia","Almoço","Férias","Telefones","Porteiro"]
[null,":30",null,null,"Supervisor","Guia","Almoço","Férias","Telefones","Porteiro"]
[null,":45",null,null,"Supervisor","Guia","Almoço","Férias","Almoço","Porteiro"]
[null,"8:00 PM",null,"Caixa","Almoço","Guia","Almoço","Férias","Almoço","Porteiro"]
[null,":15",null,"Caixa","Almoço","Guia","Serv. Apoio a Clientes","Férias","Telefones","Porteiro"]
[null,":30",null,"Caixa","Almoço","Almoço","Serv. Apoio a Clientes","Férias","Telefones","Almoço"]
[null,":45",null,"Caixa","Almoço","Almoço","Serv. Apoio a Clientes","Férias","Telefones","Almoço"]
[null,"9:00 PM",null,"Caixa","Segurança","Almoço","Serv. Apoio a Clientes","Férias","Telefones","Almoço"]
[null,":15",null,"Caixa","Segurança","Almoço","Serv. Apoio a Clientes","Férias","Telefones","Almoço"]
[null,":30",null,"Caixa","Segurança","Guia","Serv. Apoio a Clientes","Férias","Telefones","Fechar"]
[null,":45",null,"Caixa","Segurança","Guia","Serv. Apoio a Clientes","Férias","Telefones","Fechar"]
[null,"10:00 PM",null,"Caixa","Segurança","Guia","Serv. Apoio a Clientes","Férias","Pausa","Fechar"]
[null,":15",null,"Pausa","Segurança","Guia","Pausa","Férias","Telefones","Fechar"]
[null,":30",null,"Caixa","Segurança","Guia","Serv. Apoio a Clientes","Férias","Telefones","Fechar"]
[null,":45",null,"Caixa","Segurança","Guia","Serv. Apoio a Clientes","Férias","Telefones","Fechar"]
[null,"11:00 PM",null,"Caixa","Segurança","Guia","Serv. Apoio a Clientes",null,"Telefones","Fechar"]
[null,":15",null,"Caixa","Segurança","Guia","Serv. Apoio a Clientes",null,"Telefones","Fechar"]
[null,":30",null,"Caixa","Segurança","Guia","Serv. Apoio a Clientes",null,"Telefones","Fechar"]
[null,":45",null,"Caixa","Segurança","Guia","Serv. Apoio a Clientes",null,"Telefones","Fechar"]
[null,"12:00 AM",null,"Caixa","Segurança","Guia","Serv. Apoio a Clientes",null,"Telefones","Fechar"]
[null,":15",null,"Caixa","Segurança","Guia","Serv. Apoio a Clientes",null,"Telefones","Fechar"]
[null,":30",null,null,"Segurança","Guia","Serv. Apoio a Clientes",null,"Telefones","Fechar"]
[null,":45",null,null,"Segurança","Pausa","Serv. Apoio a Clientes",null,"Telefones","Pausa"]
[null,"1:00 AM",{"$nulls":3},"Guia",null,null,"Telefones","Fechar"]
[null,":15",{"$nulls":3},"Guia",null,null,"Telefones","Fechar"]
[null,":30",{"$nulls":3},"Guia",{"$nulls":3},"Fechar"]
[null,":45",{"$nulls":3},"Guia",{"$nulls":3},"Fechar"]
[null,"2:00 AM",{"$nulls":3},"Guia",{"$nulls":3},"Fechar"]
[null,":15",{"$nulls":3},"Guia"]
[null,":30",{"$nulls":3},"Guia"]
[null,":45"]
[null,"3:00 AM"]
[]
[]
[]
[]
["Agenda dos Empregados"]
[]
[null,"TOTAL:",null,{"$f":"SUM(184:184)","v":{"v":56,"d":"56.00"}}]
[null,"HORAS:",null,{"$f":"EmpregadosDiasHorasTotal","v":{"v":8,"d":"8.00"}},{"v":8,"d":"8.00"},{"v":8,"d":"8.00"},{"v":8,"d":"8.00"},{"v":8,"d":"8.00"},{"v":8,"d":"8.00"},{"v":8,"d":"8.00"},{"v":0,"d":"0.00"},{"v":0,"d":"0.00"},{"v":0,"d":"0.00"},{"v":0,"d":"0.00"},{"v":0,"d":"0.00"},{"v":0,"d":"0.00"},{"v":0,"d":"0.00"},{"v":0,"d":"0.00"},{"v":0,"d":"0.00"},{"v":0,"d":"0.00"},{"v":0,"d":"0.00"}]
[null,"EMPREGADO:",null,"Bento, N","Neves, P","Silva, E","Oliveira, S","Farinha, N","Grilo, C","Ramos, L"]
[]
[null,{"$f":"B127+1","v":"2012-07-19T09:00:00"}]
[null,{"$f":"B187","v":41109.375},{"$nulls":5},"Férias"]
[null,{"$f":"ApresentaçãoPeríodos","v":":15"},null,"Receção",{"$nulls":3},"Férias"]
[null,":30",null,"Receção",{"$nulls":3},"Férias"]
[null,":45",null,"Receção","Supervisor",null,"Serv. Apoio a Clientes","Férias"]
[null,"7:00 AM",null,"Receção","Supervisor",null,"Serv. Apoio a Clientes","Férias"]
[null,":15",null,"Receção","Supervisor",null,"Serv. Apoio a Clientes","Férias"]
[null,":30",null,"Receção","Supervisor",null,"Serv. Apoio a Clientes","Férias","Contabilidade"]
[null,":45",null,"Receção","Supervisor",null,"Serv. Apoio a Clientes","Férias","Contabilidade","Porteiro"]
[null,"8:00 AM",null,"Receção","Supervisor",null,"Serv. Apoio a Clientes","Férias","Contabilidade","Porteiro"]
[null,":15",null,"Receção","Supervisor","Guia","Serv. Apoio a Clientes","Férias","Contabilidade","Porteiro"]
[null,":30",null,"Receção","Pausa","Guia","Serv. Apoio a Clientes","Férias","Contabilidade","Porteiro"]
[null,":45",null,"Almoço","Supervisor","Guia","Serv. Apoio a Clientes","Férias","Contabilidade","Porteiro"]
[null,"9:00 AM",null,"Almoço","Supervisor","Guia","Serv. Apoio a Clientes","Férias","Contabilidade","Porteiro"]
[null,":15",null,"Receção","Supervisor","Guia","Serv. Apoio a Clientes","Férias","Pausa","Porteiro"]
[null,":30",null,"Receção","Supervisor","Pausa","Serv. Apoio a Clientes","Férias","Telefones","Pausa"]
[null,":45",null,"Receção","Supervisor","Guia","Serv. Apoio a Clientes","Férias","Telefones","Porteiro"]
[null,"10:00 AM",null,"Receção","Supervisor","Guia","Serv. Apoio a Clientes","Férias","Telefones","Porteiro"]
[null,":15",null,"Receção","Supervisor","Guia","Almoço","Férias","Telefones","Porteiro"]
[null,":30",null,null,"Supervisor","Guia","Almoço","Férias","Telefones","Porteiro"]
[null,":45",null,null,"Supervisor","Guia","Almoço","Férias","Almoço","Porteiro"]
[null,"11:00 AM",null,"Caixa","Almoço","Guia","Almoço","Férias","Almoço","Porteiro"]
[null,":15",null,"Caixa","Almoço","Guia","Serv. Apoio a Clientes","Férias","Telefones","Porteiro"]
[null,":30",null,"Caixa","Almoço","Almoço","Serv. Apoio a Clientes","Férias","Telefones","Almoço"]
[null,":45",null,"Caixa","Almoço","Almoço","Serv. Apoio a Clientes","Férias","Telefones","Almoço"]
[null,"12:00 PM",null,"Caixa","Segurança","Almoço","Serv. Apoio a Clientes","Férias","Telefones","Almoço"]
[null,":15",null,"Caixa","Segurança","Almoço","Serv. Apoio a Clientes","Férias","Telefones","Almoço"]
[null,":30",null,"Caixa","Segurança","Guia","Serv. Apoio a Clientes","Férias","Telefones","Fechar"]
[null,":45",null,"Caixa","Segurança","Guia","Serv. Apoio a Clientes","Férias","Telefones","Fechar"]
[null,"1:00 PM",null,"Caixa","Segurança","Guia","Serv. Apoio a Clientes","Férias","Pausa","Fechar"]
[null,":15",null,"Pausa","Segurança","Guia","Pausa","Férias","Telefones","Fechar"]
[null,":30",null,"Caixa","Segurança","Guia","Serv. Apoio a Clientes","Férias","Telefones","Fechar"]
[null,":45",null,"Caixa","Segurança","Guia","Serv. Apoio a Clientes","Férias","Telefones","Fechar"]
[null,"2:00 PM",null,"Caixa","Segurança","Guia","Serv. Apoio a Clientes",null,"Telefones","Fechar"]
[null,":15",null,"Caixa","Segurança","Guia","Serv. Apoio a Clientes",null,"Telefones","Fechar"]
[null,":30",null,"Caixa","Segurança","Guia","Serv. Apoio a Clientes",null,"Telefones","Fechar"]
[null,":45",null,"Caixa","Segurança","Guia","Serv. Apoio a Clientes",null,"Telefones","Fechar"]
[null,"3:00 PM",null,"Caixa","Segurança","Guia","Serv. Apoio a Clientes",null,"Telefones","Fechar"]
[null,":15",null,"Caixa","Segurança","Guia","Serv. Apoio a Clientes",null,"Telefones","Fechar"]
[null,":30",null,null,"Segurança","Guia","Serv. Apoio a Clientes",null,"Telefones","Fechar"]
[null,":45",null,null,"Segurança","Pausa","Serv. Apoio a Clientes",null,"Telefones","Pausa"]
[null,"4:00 PM",{"$nulls":3},"Guia",null,null,"Telefones","Fechar"]
[null,":15",{"$nulls":3},"Guia",null,null,"Telefones","Fechar"]
[null,":30",{"$nulls":3},"Guia",{"$nulls":3},"Fechar"]
[null,":45",{"$nulls":3},"Guia",{"$nulls":3},"Fechar"]
[null,"5:00 PM",{"$nulls":3},"Guia",{"$nulls":3},"Fechar"]
[null,":15",{"$nulls":3},"Guia"]
[null,":30",{"$nulls":3},"Guia"]
[null,":45"]
[null,"6:00 PM"]
[]
[]
[]
[]
["Agenda dos Empregados"]
[]
[null,"TOTAL:",null,{"$f":"SUM(244:244)","v":{"v":56,"d":"56.00"}}]
[null,"HORAS:",null,{"$f":"EmpregadosDiasHorasTotal","v":{"v":8,"d":"8.00"}},{"v":8,"d":"8.00"},{"v":8,"d":"8.00"},{"v":8,"d":"8.00"},{"v":8,"d":"8.00"},{"v":8,"d":"8.00"},{"v":8,"d":"8.00"},{"v":0,"d":"0.00"},{"v":0,"d":"0.00"},{"v":0,"d":"0.00"},{"v":0,"d":"0.00"},{"v":0,"d":"0.00"},{"v":0,"d":"0.00"},{"v":0,"d":"0.00"},{"v":0,"d":"0.00"},{"v":0,"d":"0.00"},{"v":0,"d":"0.00"},{"v":0,"d":"0.00"}]
[null,"EMPREGADO:",null,"Bento, N","Neves, P","Silva, E","Oliveira, S","Farinha, N","Grilo, C","Ramos, L"]
[]
[null,{"$f":"B187+1","v":"2012-07-20T09:00:00"}]
[null,{"$f":"B247","v":41110.375},{"$nulls":5},"Férias"]
[null,{"$f":"ApresentaçãoPeríodos","v":":15"},null,"Receção",{"$nulls":3},"Férias"]
[null,":30",null,"Receção",{"$nulls":3},"Férias"]
[null,":45",null,"Receção","Supervisor",null,"Serv. Apoio a Clientes","Férias"]
[null,"10:00 PM",null,"Receção","Supervisor",null,"Serv. Apoio a Clientes","Férias"]
[null,":15",null,"Receção","Supervisor",null,"Serv. Apoio a Clientes","Férias"]
[null,":30",null,"Receção","Supervisor",null,"Serv. Apoio a Clientes","Férias","Contabilidade"]
[null,":45",null,"Receção","Supervisor",null,"Serv. Apoio a Clientes","Férias","Contabilidade","Porteiro"]
[null,"11:00 PM",null,"Receção","Supervisor",null,"Serv. Apoio a Clientes","Férias","Contabilidade","Porteiro"]
[null,":15",null,"Receção","Supervisor","Guia","Serv. Apoio a Clientes","Férias","Contabilidade","Porteiro"]
[null,":30",null,"Receção","Pausa","Guia","Serv. Apoio a Clientes","Férias","Contabilidade","Porteiro"]
[null,":45",null,"Almoço","Supervisor","Guia","Serv. Apoio a Clientes","Férias","Contabilidade","Porteiro"]
[null,"12:00 AM",null,"Almoço","Supervisor","Guia","Serv. Apoio a Clientes","Férias","Contabilidade","Porteiro"]
[null,":15",null,"Receção","Supervisor","Guia","Serv. Apoio a Clientes","Férias","Pausa","Porteiro"]
[null,":30",null,"Receção","Supervisor","Pausa","Serv. Apoio a Clientes","Férias","Telefones","Pausa"]
[null,":45",null,"Receção","Supervisor","Guia","Serv. Apoio a Clientes","Férias","Telefones","Porteiro"]
[null,"1:00 AM",null,"Receção","Supervisor","Guia","Serv. Apoio a Clientes","Férias","Telefones","Porteiro"]
[null,":15",null,"Receção","Supervisor","Guia","Almoço","Férias","Telefones","Porteiro"]
[null,":30",null,null,"Supervisor","Guia","Almoço","Férias","Telefones","Porteiro"]
[null,":45",null,null,"Supervisor","Guia","Almoço","Férias","Almoço","Porteiro"]
[null,"2:00 AM",null,"Caixa","Almoço","Guia","Almoço","Férias","Almoço","Porteiro"]
[null,":15",null,"Caixa","Almoço","Guia","Serv. Apoio a Clientes","Férias","Telefones","Porteiro"]
[null,":30",null,"Caixa","Almoço","Almoço","Serv. Apoio a Clientes","Férias","Telefones","Almoço"]
[null,":45",null,"Caixa","Almoço","Almoço","Serv. Apoio a Clientes","Férias","Telefones","Almoço"]
[null,"3:00 AM",null,"Caixa","Segurança","Almoço","Serv. Apoio a Clientes","Férias","Telefones","Almoço"]
[null,":15",null,"Caixa","Segurança","Almoço","Serv. Apoio a Clientes","Férias","Telefones","Almoço"]
[null,":30",null,"Caixa","Segurança","Guia","Serv. Apoio a Clientes","Férias","Telefones","Fechar"]
[null,":45",null,"Caixa","Segurança","Guia","Serv. Apoio a Clientes","Férias","Telefones","Fechar"]
[null,"4:00 AM",null,"Caixa","Segurança","Guia","Serv. Apoio a Clientes","Férias","Pausa","Fechar"]
[null,":15",null,"Pausa","Segurança","Guia","Pausa","Férias","Telefones","Fechar"]
[null,":30",null,"Caixa","Segurança","Guia","Serv. Apoio a Clientes","Férias","Telefones","Fechar"]
[null,":45",null,"Caixa","Segurança","Guia","Serv. Apoio a Clientes","Férias","Telefones","Fechar"]
[null,"5:00 AM",null,"Caixa","Segurança","Guia","Serv. Apoio a Clientes",null,"Telefones","Fechar"]
[null,":15",null,"Caixa","Segurança","Guia","Serv. Apoio a Clientes",null,"Telefones","Fechar"]
[null,":30",null,"Caixa","Segurança","Guia","Serv. Apoio a Clientes",null,"Telefones","Fechar"]
[null,":45",null,"Caixa","Segurança","Guia","Serv. Apoio a Clientes",null,"Telefones","Fechar"]
[null,"6:00 AM",null,"Caixa","Segurança","Guia","Serv. Apoio a Clientes",null,"Telefones","Fechar"]
[null,":15",null,"Caixa","Segurança","Guia","Serv. Apoio a Clientes",null,"Telefones","Fechar"]
[null,":30",null,null,"Segurança","Guia","Serv. Apoio a Clientes",null,"Telefones","Fechar"]
[null,":45",null,null,"Segurança","Pausa","Serv. Apoio a Clientes",null,"Telefones","Pausa"]
[null,"7:00 AM",{"$nulls":3},"Guia",null,null,"Telefones","Fechar"]
[null,":15",{"$nulls":3},"Guia",null,null,"Telefones","Fechar"]
[null,":30",{"$nulls":3},"Guia",{"$nulls":3},"Fechar"]
[null,":45",{"$nulls":3},"Guia",{"$nulls":3},"Fechar"]
[null,"8:00 AM",{"$nulls":3},"Guia",{"$nulls":3},"Fechar"]
[null,":15",{"$nulls":3},"Guia"]
[null,":30",{"$nulls":3},"Guia"]
[null,":45"]
[null,"9:00 AM"]

{"sheet":"Configuração","index":1,"n_rows":26,"n_cols":7,"rows_kept":26}
[null,"Configuração"]
[]
[]
[null,"INCREMENTOS POR\nHORA - ENTRADA",4]
[]
[]
[]
[]
[]
[null,"Empregados",null,"Posto/Tempo Livre","Cor","Pago","Dia Inteiro"]
[null,"Bento, N",null,"Almoço",1,false,false]
[null,"Farinha, N",null,"Pausa",1,false,false]
[null,"Grilo, C",null,"Ausente",1,false,true]
[null,"Martins, I",null,"Doente",1,false,true]
[null,"Neves, P",null,"Dia Pessoal",1,true,true]
[null,"Oliveira, S",null,"Férias",1,true,true]
[null,"Ramos, L",null,"Receção",2,true,false]
[null,"Silva, E",null,"Caixa",3,true,false]
[{"$nulls":3},"Supervisor",4,true,false]
[{"$nulls":3},"Guia",5,true,false]
[{"$nulls":3},"Serv. Apoio a Clientes",6,true,false]
[{"$nulls":3},"Telefones",7,true,false]
[{"$nulls":3},"Segurança",8,true,false]
[{"$nulls":3},"Porteiro",9,true,false]
[{"$nulls":3},"Contabilidade",10,true,false]
[{"$nulls":3},"Fechar",11,true,false]